fUSD/lending_fUSD_20250930
["ID","MTS","AMOUNT","RATE_DAILY","PERIOD"]
[388603088,1759249896745,-500.0,0.00019726,2]
[388603089,1759249896754,-562.08,0.00019726,2]
[388603090,1759249896763,-500.0,0.00019726,2]
[388603091,1759249896772,-500.0,0.00019726,2]
[388603092,1759249896781,-3271.8,0.00019726,2]
[388603093,1759249896790,-500.0,0.00019726,2]
[388603094,1759249896799,-500.0,0.00019726,2]
[388603095,1759249896808,-500.0,0.00019726,2]
[388603096,1759249896817,-151.0,0.00019726,2]
[388603097,1759249896826,-500.0,0.00019726,2]
[388603098,1759249896835,-151.0,0.00019726,2]
[388603099,1759249896844,-151.0,0.00019726,2]
[388603100,1759249896853,-151.0,0.00019726,2]
[388603101,1759249896862,-1649.99,0.00019726,2]
[388603102,1759249896871,-500.0,0.00019726,2]
[388603103,1759249896883,-500.0,0.00019726,2]
[388603104,1759249896894,-500.0,0.00019726,2]
[388603105,1759249896904,-500.0,0.00019726,2]
[388603106,1759249896914,-500.0,0.00019726,2]
[388603107,1759249896926,-2413.64,0.00019726,2]
[388603108,1759249896936,-500.0,0.00019726,2]
[388603109,1759249896945,-500.0,0.00019726,2]
[388603110,1759249896958,-500.0,0.00019726,2]
[388603111,1759249896967,-865.04,0.00019726,2]
[388603112,1759249896977,-732.06,0.00019726,2]
[388603113,1759249896986,-1015.28,0.00019726,2]
[388603114,1759249896996,-165.108086,0.00019726,2]
[388603115,1759249897009,-1096.95,0.00019726,2]
[388603116,1759249897018,-500.0,0.00019726,2]
[388603117,1759249897029,-2531.82,0.00019726,2]
[388603118,1759249897038,-1328.15,0.00019726,2]
[388603119,1759249897047,-500.0,0.00019726,2]
[388603120,1759249897057,-578.82,0.00019726,2]
[388603121,1759249897067,-151.0,0.00019726,2]
[388603122,1759249897077,-500.0,0.00019726,2]
[388603123,1759249897086,-1491.42,0.00019726,2]
[388603124,1759249897095,-500.0,0.00019726,2]
[388603125,1759249897105,-500.0,0.00019726,2]
[388603126,1759249897114,-1030.5,0.00019726,2]
[388603127,1759249897123,-695.45,0.00019726,2]
[388603128,1759249897132,-500.0,0.00019726,2]
[388603129,1759249897141,-500.0,0.00019726,2]
[388603130,1759249897150,-233.34263638,0.00019726,2]
[388603131,1759249897159,-500.0,0.00019726,2]
[388603132,1759249897168,-514.24,0.00019726,2]
[388603133,1759249897177,-500.0,0.00019726,2]
[388603134,1759249897186,-994.38,0.00019726,2]
[388603135,1759249897195,-500.0,0.00019726,2]
[388603136,1759249897205,-500.0,0.00019726,2]
[388603137,1759249897215,-848.58,0.00019726,2]
[388603138,1759249897225,-4540.63,0.00019726,2]
[388603139,1759249897235,-500.0,0.00019726,2]
[388603140,1759249897245,-678.24,0.00019726,2]
[388603141,1759249897255,-1847.64,0.00019726,2]
[388603142,1759249897265,-775.23,0.00019726,2]
[388603143,1759249897274,-918.34,0.00019726,2]
[388603144,1759249897284,-1517.91,0.00019726,2]
[388603145,1759249897293,-151.0,0.00019726,2]
[388603146,1759249897303,-500.0,0.00019726,2]
[388603147,1759249897313,-151.0,0.00019726,2]
[388603148,1759249897323,-151.0,0.00019726,2]
[388603149,1759249897334,-500.0,0.00019726,2]
[388603150,1759249897344,-500.0,0.00019726,2]
[388603151,1759249897354,-500.0,0.00019726,2]
[388603152,1759249897364,-1215.69,0.00019726,2]
[388603153,1759249897373,-500.0,0.00019726,2]
[388603154,1759249897382,-500.0,0.00019726,2]
[388603155,1759249897391,-540.75,0.00019726,2]
[388603156,1759249897402,-500.0,0.00019726,2]
[388603157,1759249897411,-1917.21,0.00019726,2]
[388603158,1759249897422,-500.0,0.00019726,2]
[388603159,1759249897432,-938.24,0.00019726,2]
[388603160,1759249897441,-978.98,0.00019726,2]
[388603161,1759249897451,-500.0,0.00019726,2]
[388603162,1759249897460,-1005.4,0.00019726,2]
[388603163,1759249897469,-334.34044839,0.00019726,2]
[388603164,1759249897479,-679.04,0.00019726,2]
[388603165,1759249897488,-1739.75,0.00019726,2]
[388603166,1759249897497,-500.0,0.00019726,2]
[388603167,1759249897506,-500.0,0.00019726,2]
[388603168,1759249897515,-500.0,0.00019726,2]
[388603169,1759249897525,-500.0,0.00019726,2]
[388603170,1759249897536,-4691.52,0.00019726,2]
[388603171,1759249897547,-500.0,0.00019726,2]
[388603172,1759249897558,-176.8,0.00019726,2]
[388603173,1759249897567,-500.0,0.00019726,2]
[388603174,1759249897576,-536.4113286,0.00019726,2]
[388603175,1759249897585,-500.0,0.00019726,2]
[388603176,1759249897594,-1598.83,0.00019726,2]
[388603177,1759249897603,-1491.16,0.00019726,2]
[388603178,1759249897613,-279.924312,0.00019726,2]
[388603179,1759249897623,-4560.09,0.00019726,2]
[388603180,1759249897632,-904.66,0.00019726,2]
[388603181,1759249897641,-1198.14,0.00019726,2]
[388603182,1759249897650,-500.0,0.00019726,2]
[388603183,1759249897660,-500.0,0.00019726,2]
[388603184,1759249897670,-737.28,0.00019726,2]
[388603185,1759249897679,-2355.43,0.00019726,2]
[388603186,1759249897689,-500.0,0.00019726,2]
[388603187,1759249897699,-500.0,0.00019726,2]
[388603188,1759249897709,-500.0,0.00019726,2]
[388603189,1759249897719,-500.0,0.00019726,2]
[388603190,1759249897730,-315.03149379,0.00019726,2]
[388603191,1759249897739,-500.0,0.00019726,2]
[388603192,1759249897748,-764.93,0.00019726,2]
[388603193,1759249897757,-500.0,0.00019726,2]
[388603194,1759249897767,-685.35,0.00019726,2]
[388603195,1759249897776,-702.55,0.00019726,2]
[388603196,1759249897785,-1003.38,0.00019726,2]
[388603197,1759249897794,-485.30627217,0.00019726,2]
[388603198,1759249897803,-151.0,0.00019726,2]
[388603199,1759249897812,-151.0,0.00019726,2]
[388603200,1759249897821,-847.95,0.00019726,2]
[388603201,1759249897831,-4540.99,0.00019726,2]
[388603202,1759249897840,-500.0,0.00019726,2]
[388603203,1759249897849,-500.0,0.00019726,2]
[388603204,1759249897858,-500.0,0.00019726,2]
[388603205,1759249897867,-3006.36,0.00019726,2]
[388603206,1759249897877,-3831.64,0.00019726,2]
[388603207,1759249897892,-924.71,0.00019726,2]
[388603208,1759249897901,-863.68,0.00019726,2]
[388603209,1759249897910,-2014.92,0.00019726,2]
[388603210,1759249897919,-500.0,0.00019726,2]
[388603211,1759249897930,-819.66,0.00019726,2]
[388603212,1759249897939,-500.0,0.00019726,2]
[388603213,1759249897948,-500.0,0.00019726,2]
[388603214,1759249897958,-380.92,0.00019726,2]
[388603215,1759249897968,-1644.15,0.00019726,2]
[388603216,1759249897977,-500.0,0.00019726,2]
[388603217,1759249897987,-824.63,0.00019726,2]
[388603218,1759249897996,-5869.97,0.00019726,2]
[388603219,1759249898006,-500.0,0.00019726,2]
[388603220,1759249898015,-500.0,0.00019726,2]
[388603221,1759249898026,-582.13,0.00019726,2]
[388603222,1759249898036,-1448.22,0.00019726,2]
[388603223,1759249898045,-500.0,0.00019726,2]
[388603224,1759249898055,-578.84,0.00019726,2]
[388603225,1759249898065,-500.0,0.00019726,2]
[388603226,1759249898219,-1392.34,0.00019726,2]
[388603227,1759249898229,-500.0,0.00019726,2]
[388603228,1759249898239,-1813.14,0.00019726,2]
[388603229,1759249898249,-1137.79,0.00019726,2]
[388603230,1759249898259,-151.0,0.00019726,2]
[388603231,1759249898269,-500.0,0.00019726,2]
[388603232,1759249898278,-151.0,0.00019726,2]
[388603233,1759249898287,-2029.0,0.00019726,2]
[388603234,1759249898297,-558.9,0.00019726,2]
[388603235,1759249898306,-1554.29,0.00019726,2]
[388603236,1759249898316,-500.0,0.00019726,2]
[388603237,1759249898325,-500.0,0.00019726,2]
[388603238,1759249898334,-500.0,0.00019726,2]
[388603239,1759249898344,-834.18,0.00019726,2]
[388603240,1759249898354,-500.0,0.00019726,2]
[388603241,1759249898365,-151.0,0.00019726,2]
[388603242,1759249898375,-151.0,0.00019726,2]
[388603243,1759249898384,-500.0,0.00019726,2]
[388603244,1759249898393,-3823.81,0.00019726,2]
[388603245,1759249898403,-2307.11,0.00019726,2]
[388603246,1759249898412,-2152.71,0.00019726,2]
[388603247,1759249898421,-500.0,0.00019726,2]
[388603248,1759249898430,-1515.99,0.00019726,2]
[388603249,1759249898440,-771.45,0.00019726,2]
[388603250,1759249898449,-500.0,0.00019726,2]
[388603251,1759249898458,-500.0,0.00019726,2]
[388603252,1759249898468,-500.0,0.00019726,2]
[388603253,1759249898479,-500.0,0.00019726,2]
[388603254,1759249898489,-2834.9,0.00019726,2]
[388603255,1759249898498,-500.0,0.00019726,2]
[388603256,1759249898508,-4284.68,0.00019726,2]
[388603257,1759249898517,-500.0,0.00019726,2]
[388603258,1759249898527,-618.33,0.00019726,2]
[388603259,1759249898536,-3313.28,0.00019726,2]
[388603260,1759249898546,-500.0,0.00019726,2]
[388603261,1759249898556,-500.0,0.00019726,2]
[388603262,1759249898565,-703.73,0.00019726,2]
[388603263,1759249898576,-500.0,0.00019726,2]
[388603264,1759249898586,-4366.43,0.00019726,2]
[388603265,1759249898595,-500.0,0.00019726,2]
[388603266,1759249898605,-500.0,0.00019726,2]
[388603267,1759249898614,-451.50575001,0.00019726,2]
[388603268,1759249898624,-689.89,0.00019726,2]
[388603269,1759249898635,-500.0,0.00019726,2]
[388603270,1759249898644,-3999.45,0.00019726,2]
[388603271,1759249898654,-664.25,0.00019726,2]
[388603272,1759249898663,-953.02,0.00019726,2]
[388603273,1759249898673,-2566.51,0.00019726,2]
[388603274,1759249898683,-2865.63,0.00019726,2]
[388603275,1759249898693,-500.0,0.00019726,2]
[388603276,1759249898703,-500.0,0.00019726,2]
[388603277,1759249898712,-3659.64,0.00019726,2]
[388603278,1759249898722,-3400.17,0.00019726,2]
[388603279,1759249898734,-422.036572,0.00019726,2]
[388603280,1759249898743,-422.036572,0.00019726,2]
[388603281,1759249898754,-500.0,0.00019726,2]
[388603282,1759249898763,-500.0,0.00019726,2]
[388603283,1759249898773,-422.036572,0.00019726,2]
[388603284,1759249898783,-422.036572,0.00019726,2]
[388603285,1759249898792,-500.0,0.00019726,2]
[388603286,1759249898804,-422.036572,0.00019726,2]
[388603287,1759249898814,-422.036572,0.00019726,2]
[388603288,1759249898823,-422.036572,0.00019726,2]
[388603289,1759249898833,-422.036569,0.00019726,2]
[388603290,1759249898843,-797.85,0.00019726,2]
[388603291,1759249898854,-3116.39,0.00019726,2]
[388603292,1759249898864,-500.0,0.00019726,2]
[388603293,1759249898874,-500.0,0.00019726,2]
[388603294,1759249898890,-500.0,0.00019726,2]
[388603295,1759249898900,-2839.3,0.00019726,2]
[388603296,1759249898909,-500.0,0.00019726,2]
[388603297,1759249898919,-4067.08,0.00019726,2]
[388603298,1759249898931,-4647.02,0.00019726,2]
[388603299,1759249898941,-500.0,0.00019726,2]
[388603300,1759249898951,-997.57,0.00019726,2]
[388603301,1759249898962,-151.0,0.00019726,2]
[388603302,1759249898972,-500.0,0.00019726,2]
[388603303,1759249898986,-151.0,0.00019726,2]
[388603304,1759249898997,-2767.59,0.00019726,2]
[388603305,1759249899006,-500.0,0.00019726,2]
[388603306,1759249899018,-500.0,0.00019726,2]
[388603307,1759249899028,-3465.31,0.00019726,2]
[388603308,1759249899038,-4866.7,0.00019726,2]
[388603309,1759249899048,-151.0,0.00019726,2]
[388603310,1759249899058,-151.0,0.00019726,2]
[388603311,1759249899068,-1554.14,0.00019726,2]
[388603312,1759249899078,-357.92,0.00019726,2]
[388603313,1759249899088,-500.0,0.00019726,2]
[388603314,1759249899098,-183.356382,0.00019726,2]
[388603315,1759249899108,-500.0,0.00019726,2]
[388603316,1759249899118,-500.0,0.00019726,2]
[388603317,1759249899128,-2680.84,0.00019726,2]
[388603318,1759249899137,-803.25,0.00019726,2]
[388603319,1759249899147,-710.23,0.00019726,2]
[388603320,1759249899158,-151.0,0.00019726,2]
[388603321,1759249899167,-3149.76,0.00019726,2]
[388603322,1759249899177,-151.0,0.00019726,2]
[388603323,1759249899187,-625.58557,0.00019726,2]
[388603324,1759249899197,-625.58557,0.00019726,2]
[388603325,1759249899207,-500.0,0.00019726,2]
[388603326,1759249899216,-500.0,0.00019726,2]
[388603327,1759249899230,-625.58557,0.00019726,2]
[388603328,1759249899240,-500.0,0.00019726,2]
[388603329,1759249899249,-625.58557,0.00019726,2]
[388603330,1759249899259,-151.0,0.00019726,2]
[388603331,1759249899271,-151.0,0.00019726,2]
[388603332,1759249899281,-182.217577,0.00019726,2]
[388603333,1759249899290,-182.217577,0.00019726,2]
[388603334,1759249899300,-625.58557,0.00019726,2]
[388603335,1759249899310,-625.58557,0.00019726,2]
[388603336,1759249899320,-151.0,0.00019726,2]
[388603337,1759249899330,-182.217577,0.00019726,2]
[388603338,1759249899340,-151.0,0.00019726,2]
[388603339,1759249899350,-3513.35,0.00019726,2]
[388603340,1759249899360,-500.0,0.00019726,2]
[388603341,1759249899370,-182.217577,0.00019726,2]
[388603342,1759249899380,-625.58557,0.00019726,2]
[388603343,1759249899389,-203.642216,0.00019726,2]
[388603344,1759249899399,-625.585564,0.00019726,2]
[388603345,1759249899408,-182.217577,0.00019726,2]
[388603346,1759249899418,-182.217577,0.00019726,2]
[388603347,1759249899427,-500.0,0.00019726,2]
[388603348,1759249899437,-151.92,0.00019726,2]
[388603349,1759249899447,-182.217577,0.00019726,2]
[388603350,1759249899456,-182.21757,0.00019726,2]
[388603351,1759249899466,-500.0,0.00019726,2]
[388603352,1759249899477,-500.0,0.00019726,2]
[388603353,1759249899486,-500.0,0.00019726,2]
[388603354,1759249899496,-2892.57,0.00019726,2]
[388603355,1759249899505,-500.0,0.00019726,2]
[388603356,1759249899515,-500.0,0.00019726,2]
[388603357,1759249899524,-500.0,0.00019726,2]
[388603358,1759249899535,-2497.12,0.00019726,2]
[388603359,1759249899544,-256.93342848,0.00019726,2]
[388603360,1759249899553,-3046.54,0.00019726,2]
[388603361,1759249899563,-500.0,0.00019726,2]
[388603362,1759249899572,-1185.67,0.00019726,2]
[388603363,1759249899581,-500.0,0.00019726,2]
[388603364,1759249899590,-500.0,0.00019726,2]
[388603365,1759249899600,-1046.86,0.00019726,2]
[388603366,1759249899613,-2980.9,0.00019726,2]
[388603367,1759249899623,-500.0,0.00019726,2]
[388603368,1759249899632,-1058.18,0.00019726,2]
[388603369,1759249899641,-500.0,0.00019726,2]
[388603370,1759249899651,-500.0,0.00019726,2]
[388603371,1759249899661,-500.0,0.00019726,2]
[388603372,1759249899670,-500.0,0.00019726,2]
[388603373,1759249899680,-4627.7,0.00019726,2]
[388603374,1759249899689,-1502.99,0.00019726,2]
[388603375,1759249899699,-3420.37,0.00019726,2]
[388603376,1759249899708,-164.558997,0.00019726,2]
[388603377,1759249899717,-164.558997,0.00019726,2]
[388603378,1759249899727,-500.0,0.00019726,2]
[388603379,1759249899737,-500.0,0.00019726,2]
[388603380,1759249899746,-500.0,0.00019726,2]
[388603381,1759249899756,-2712.62,0.00019726,2]
[388603382,1759249899765,-164.558997,0.00019726,2]
[388603383,1759249899774,-1521.47,0.00019726,2]
[388603384,1759249899784,-164.558997,0.00019726,2]
[388603385,1759249899794,-164.558997,0.00019726,2]
[388603386,1759249899803,-164.558997,0.00019726,2]
[388603387,1759249899813,-500.0,0.00019726,2]
[388603388,1759249899822,-500.0,0.00019726,2]
[388603389,1759249899832,-164.558997,0.00019726,2]
[388603390,1759249899842,-2632.63,0.00019726,2]
[388603391,1759249899851,-6329.11,0.00019726,2]
[388603392,1759249899860,-501.9,0.00019726,2]
[388603393,1759249899870,-164.558989,0.00019726,2]
[388603394,1759249899881,-500.0,0.00019726,2]
[388603395,1759249899894,-2809.41,0.00019726,2]
[388603396,1759249899904,-500.0,0.00019726,2]
[388603397,1759249899914,-4080.97,0.00019726,2]
[388603398,1759249899925,-500.0,0.00019726,2]
[388603399,1759249899935,-500.0,0.00019726,2]
[388603400,1759249899944,-500.0,0.00019726,2]
[388603401,1759249899955,-500.0,0.00019726,2]
[388603402,1759249899967,-500.0,0.00019726,2]
[388603403,1759249899979,-500.0,0.00019726,2]
[388603404,1759249899989,-500.0,0.00019726,2]
[388603405,1759249899999,-1777.69,0.00019726,2]
[388603406,1759249900010,-544.05,0.00019726,2]
[388603407,1759249900023,-3076.77,0.00019726,2]
[388603408,1759249900033,-4146.02,0.00019726,2]
[388603409,1759249900043,-500.0,0.00019726,2]
[388603410,1759249900053,-500.0,0.00019726,2]
[388603411,1759249900063,-1095.8,0.00019726,2]
[388603412,1759249900072,-1297.54,0.00019726,2]
[388603413,1759249900082,-2883.28,0.00019726,2]
[388603414,1759249900091,-151.0,0.00019726,2]
[388603415,1759249900100,-151.0,0.00019726,2]
[388603416,1759249900109,-3973.05,0.00019726,2]
[388603417,1759249900119,-151.0,0.00019726,2]
[388603418,1759249900129,-151.0,0.00019726,2]
[388603419,1759249900139,-500.0,0.00019726,2]
[388603420,1759249900149,-1190.41,0.00019726,2]
[388603421,1759249900159,-151.0,0.00019726,2]
[388603422,1759249900168,-151.0,0.00019726,2]
[388603423,1759249900178,-1078.9,0.00019726,2]
[388603424,1759249900187,-2827.74,0.00019726,2]
[388603425,1759249900196,-151.0,0.00019726,2]
[388603426,1759249900206,-151.0,0.00019726,2]
[388603427,1759249900215,-500.0,0.00019726,2]
[388603428,1759249900225,-1977.96,0.00019726,2]
[388603429,1759249900237,-1371.01,0.00019726,2]
[388603430,1759249900246,-500.0,0.00019726,2]
[388603431,1759249900256,-2443.81,0.00019726,2]
[388603432,1759249900266,-294.54355852,0.00019726,2]
[388603433,1759249900275,-500.0,0.00019726,2]
[388603434,1759249900284,-151.0,0.00019726,2]
[388603435,1759249900294,-648.83,0.00019726,2]
[388603436,1759249900303,-4167.04,0.00019726,2]
[388603437,1759249900312,-770.34,0.00019726,2]
[388603438,1759249900321,-500.0,0.00019726,2]
[388603439,1759249900331,-151.0,0.00019726,2]
[388603440,1759249900340,-1293.01,0.00019726,2]
[388603441,1759249900349,-151.0,0.00019726,2]
[388603442,1759249900358,-771.72,0.00019726,2]
[388603443,1759249900367,-500.0,0.00019726,2]
[388603444,1759249900376,-1772.84,0.00019726,2]
[388603445,1759249900698,-1690.13,0.00019726,2]
[388603446,1759249900752,-1225.67,0.00019726,2]
[388603447,1759249900763,-500.0,0.00019726,2]
[388603448,1759249900772,-212.59401644,0.00019726,2]
[388603449,1759249900781,-500.0,0.00019726,2]
[388603450,1759249900790,-744.04,0.00019726,2]
[388603451,1759249900800,-2398.06,0.00019726,2]
[388603452,1759249900810,-500.0,0.00019726,2]
[388603453,1759249900819,-500.0,0.00019726,2]
[388603454,1759249900829,-979.97,0.00019726,2]
[388603455,1759249900839,-3473.39,0.00019726,2]
[388603456,1759249900852,-500.0,0.00019726,2]
[388603457,1759249900861,-500.0,0.00019726,2]
[388603458,1759249900871,-538.98,0.00019726,2]
[388603459,1759249900881,-591.67,0.00019726,2]
[388603460,1759249900894,-500.0,0.00019726,2]
[388603461,1759249900904,-500.0,0.00019726,2]
[388603462,1759249900914,-169.631558,0.00019726,2]
[388603463,1759249900927,-500.0,0.00019726,2]
[388603464,1759249900937,-169.631558,0.00019726,2]
[388603465,1759249900948,-151.0,0.00019726,2]
[388603466,1759249900958,-151.0,0.00019726,2]
[388603467,1759249900970,-169.631558,0.00019726,2]
[388603468,1759249900981,-169.631558,0.00019726,2]
[388603469,1759249900991,-151.0,0.00019726,2]
[388603470,1759249901001,-151.0,0.00019726,2]
[388603471,1759249901011,-169.631558,0.00019726,2]
[388603472,1759249901021,-169.631558,0.00019726,2]
[388603473,1759249901031,-500.0,0.00019726,2]
[388603474,1759249901040,-169.631558,0.00019726,2]
[388603475,1759249901051,-500.0,0.00019726,2]
[388603476,1759249901062,-500.0,0.00019726,2]
[388603477,1759249901071,-3442.16,0.00019726,2]
[388603478,1759249901081,-169.631566,0.00019726,2]
[388603479,1759249901091,-500.0,0.00019726,2]
[388603480,1759249901101,-500.0,0.00019726,2]
[388603481,1759249901110,-500.0,0.00019726,2]
[388603482,1759249901120,-684.02,0.00019726,2]
[388603483,1759249901129,-500.0,0.00019726,2]
[388603484,1759249901139,-1755.89,0.00019726,2]
[388603485,1759249901148,-1319.93,0.00019726,2]
[388603486,1759249901158,-601.54584708,0.00019726,2]
[388603487,1759249901168,-2110.3,0.00019726,2]
[388603488,1759249901177,-500.0,0.00019726,2]
[388603489,1759249901187,-994.96,0.00019726,2]
[388603490,1759249901197,-151.0,0.00019726,2]
[388603491,1759249901207,-151.0,0.00019726,2]
[388603492,1759249901216,-2277.98,0.00019726,2]
[388603493,1759249901226,-500.0,0.00019726,2]
[388603494,1759249901238,-151.0,0.00019726,2]
[388603495,1759249901247,-297.95607191,0.00019726,2]
[388603496,1759249901257,-876.179998,0.00019726,2]
[388603497,1759249901267,-151.0,0.00019726,2]
[388603498,1759249901276,-876.179998,0.00019726,2]
[388603499,1759249901286,-2022.34,0.00019726,2]
[388603500,1759249901295,-3967.68,0.00019726,2]
[388603501,1759249901305,-876.179998,0.00019726,2]
[388603502,1759249901314,-876.179998,0.00019726,2]
[388603503,1759249901323,-2773.78,0.00019726,2]
[388603504,1759249901334,-1827.75,0.00019726,2]
[388603505,1759249901344,-2348.42,0.00019726,2]
[388603506,1759249901355,-876.179998,0.00019726,2]
[388603507,1759249901364,-876.179998,0.00019726,2]
[388603508,1759249901374,-832.16,0.00019726,2]
[388603509,1759249901383,-500.0,0.00019726,2]
[388603510,1759249901393,-876.179998,0.00019726,2]
[388603511,1759249901402,-500.0,0.00019726,2]
[388603512,1759249901411,-734.3,0.00019726,2]
[388603513,1759249901421,-876.179996,0.00019726,2]
[388603514,1759249901432,-1794.49,0.00019726,2]
[388603515,1759249901444,-474.379274,0.00019726,2]
[388603516,1759249901454,-474.379274,0.00019726,2]
[388603517,1759249901464,-2735.68,0.00019726,2]
[388603518,1759249901473,-500.0,0.00019726,2]
[388603519,1759249901483,-474.379274,0.00019726,2]
[388603520,1759249901492,-3858.28,0.00019726,2]
[388603521,1759249901501,-308.77,0.00019726,2]
[388603522,1759249901510,-474.379274,0.00019726,2]
[388603523,1759249901520,-3928.79,0.00019726,2]
[388603524,1759249901530,-1923.88,0.00019726,2]
[388603525,1759249901539,-474.379274,0.00019726,2]
[388603526,1759249901548,-500.0,0.00019726,2]
[388603527,1759249901557,-474.379274,0.00019726,2]
[388603528,1759249901566,-2930.29,0.00019726,2]
[388603529,1759249901575,-474.379274,0.00019726,2]
[388603530,1759249901585,-474.379281,0.00019726,2]
[388603531,1759249901594,-500.0,0.00019726,2]
[388603532,1759249901603,-1574.6,0.00019726,2]
[388603533,1759249901612,-500.0,0.00019726,2]
[388603534,1759249901622,-968.72,0.00019726,2]
[388603535,1759249901631,-500.0,0.00019726,2]
[388603536,1759249901641,-500.0,0.00019726,2]
[388603537,1759249901650,-1771.79,0.00019726,2]
[388603538,1759249901659,-2282.61,0.00019726,2]
[388603539,1759249901668,-151.0,0.00019726,2]
[388603540,1759249901677,-251.282577,0.00019726,2]
[388603541,1759249901686,-251.282577,0.00019726,2]
[388603542,1759249901695,-172.493537,0.00019726,2]
[388603543,1759249901704,-251.282577,0.00019726,2]
[388603544,1759249901714,-251.282577,0.00019726,2]
[388603545,1759249901722,-409.13724973,0.00019726,2]
[388603546,1759249901732,-251.282577,0.00019726,2]
[388603547,1759249901742,-1719.75,0.00019726,2]
[388603548,1759249901751,-767.46,0.00019726,2]
[388603549,1759249901761,-251.282577,0.00019726,2]
[388603550,1759249901770,-1012.27,0.00019726,2]
[388603551,1759249901779,-251.282577,0.00019726,2]
[388603552,1759249901788,-251.282585,0.00019726,2]
[388603553,1759249901797,-500.0,0.00019726,2]
[388603554,1759249901806,-694.1,0.00019726,2]
[388603555,1759249901817,-1248.58,0.00019726,2]
[388603556,1759249901827,-151.0,0.00019726,2]
[388603557,1759249901837,-151.0,0.00019726,2]
[388603558,1759249901847,-177.702558,0.00019726,2]
[388603559,1759249901857,-151.0,0.00019726,2]
[388603560,1759249901867,-652.78,0.00019726,2]
[388603561,1759249901876,-4270.0,0.00019726,2]
[388603562,1759249901889,-151.0,0.00019726,2]
[388603563,1759249901898,-177.702558,0.00019726,2]
[388603564,1759249901907,-1871.62,0.00019726,2]
[388603565,1759249901917,-838.21,0.00019726,2]
[388603566,1759249901931,-151.0,0.00019726,2]
[388603567,1759249901943,-177.702558,0.00019726,2]
[388603568,1759249901953,-500.0,0.00019726,2]
[388603569,1759249901963,-177.702565,0.00019726,2]
[388603570,1759249901974,-500.0,0.00019726,2]
[388603571,1759249901984,-500.0,0.00019726,2]
[388603572,1759249901994,-500.0,0.00019726,2]
[388603573,1759249902004,-1168.9,0.00019726,2]
[388603574,1759249902014,-546.27,0.00019726,2]
[388603575,1759249902024,-500.0,0.00019726,2]
[388603576,1759249902033,-500.0,0.00019726,2]
[388603577,1759249902043,-1137.87,0.00019726,2]
[388603578,1759249902052,-500.0,0.00019726,2]
[388603579,1759249902062,-467.10668253,0.00019726,2]
[388603580,1759249902072,-540.358397,0.00019726,2]
[388603581,1759249902081,-1214.57,0.00019726,2]
[388603582,1759249902091,-786.49,0.00019726,2]
[388603583,1759249902101,-500.0,0.00019726,2]
[388603584,1759249902110,-540.358397,0.00019726,2]
[388603585,1759249902120,-500.0,0.00019726,2]
[388603586,1759249902129,-757.47,0.00019726,2]
[388603587,1759249902139,-540.358397,0.00019726,2]